Cogmind - Beta 13 @@@ ROGUE MODE // 2024.04.07 @ 11:30:12 Player: jihakuz Result: Destroyed by H-61 Shepherd with Heavy Assault Cannon Performance ------------- Evolutions (2) 1000 Regions Visited (4) 800 Robots Destroyed (26) 130 Value Destroyed (658) 658 Prototype IDs (1) 20 Alien Tech Used (0) 0 Bonus (206) 206 TOTAL SCORE: 2814 Bonus ------- Follower Combat Kills 206 Cogmind --------- Core Integrity 0/550 Matter 290/300 Energy 84/100 System Corruption 0% Temperature Cool (88) Movement Hovering (80) Location -8/Materials Parts ------- > --- POWER (2) -------- (None) > --- PROPULSION (3) --- Backup Propulsion I > --- UTILITY (2) ------ (None) > --- WEAPON (4) ------- (None) > --- INVENTORY (5) ---- Advanced Heat Sink Peak State ------------ > --- POWER ------------ Improved Ion Engine > --- PROPULSION ------- Aluminum Leg Carbon-fiber Leg Titanium Leg > --- UTILITY ---------- Advanced Heat Sink Salvage Targeting Computer > --- WEAPON ----------- Heavy EM Pulse Gun Small Laser Particle Gun Particle Gun > --- INVENTORY -------- Aluminum Leg Flight Unit Beam Cannon [Rating: 23] Favorites ----------- Power Nuclear Core Engine Improved Ion Engine Power Core Nuclear Core Propulsion Aluminum Leg Treads Light Treads Leg Aluminum Leg Wheel Compact Wheel Hover Unit Hover Unit Flight Unit Flight Unit Utility Medium Storage Unit Device Structural Scanner Storage Medium Storage Unit Processor Salvage Targeting Computer Protection Light Armor Plating Weapon Improved EM Shotgun Energy Gun Improved EM Shotgun Energy Cannon Beam Cannon Ballistic Gun Light Assault Rifle Special Weapon Mining Laser Build | -11 -10 -9 -9 -8 ------- Run | Yrd Mat Mat Min Mat Slots Evolved 4 | . . 2 . 2 Power 1 | . . 1 . . Propulsion 1 | . . 1 . . Utility . | . . . . . Weapon 2 | . . . . 2 Parts Attached 88 | 9 16 31 3 29 Power 12 | 1 3 4 . 4 Engine 10 | 1 3 2 . 4 Core 2 | . . 2 . . Reactor . | . . . . . Propulsion 30 | 4 5 8 3 10 Treads 1 | . . 1 . . Leg 16 | 2 1 5 . 8 Wheel 3 | 2 . 1 . . Hover 5 | . 3 1 . 1 Flight 5 | . 1 . 3 1 Utility 16 | 1 5 7 . 3 Device 2 | . 1 . . 1 Storage 5 | 1 3 1 . . Processor 2 | . . . . 2 Hackware . | . . . . . Protection 7 | . 1 6 . . Artifact . | . . . . . Weapon 30 | 3 3 12 . 12 Energy Gun 14 | . . 6 . 8 Energy Cannon 2 | . 1 . . 1 Ballistic Gun 11 | 3 2 3 . 3 Ballistic Cannon . | . . . . . Launcher . | . . . . . Special Weapon 3 | . . 3 . . Impact Weapon . | . . . . . Slashing Weapon . | . . . . . Piercing Weapon . | . . . . . Special Melee Weapon . | . . . . . Unidentified Prototypes 1 | . . 1 . . Parts Lost 38 | . 7 9 . 22 Power 9 | . 3 1 . 5 Propulsion 12 | . 3 2 . 7 Utility 5 | . . 2 . 3 Weapon 12 | . 1 4 . 7 Highest Loss Streak 15 | . 4 8 . 15 To Critical Strikes . | . . . . . Average Slot Usage (%) 90 | . 81 92 97 91 Engine 7 | . 13 6 . 9 Core 9 | . . 11 22 6 Leg 18 | . 5 27 9 20 Hover 2 | . 5 2 . . Flight 5 | . 6 . 21 3 Storage 11 | . 22 11 11 1 Processor 2 | . . . . 10 Protection 6 | . 1 9 11 3 Energy Gun 15 | . . 16 22 27 Energy Cannon 2 | . 5 . . 3 Ballistic Gun 6 | . 18 3 . 2 Naked Turns 5 | . . . . 5 Heaviest Build 37 | 10 27 37 33 37 Greatest Support 42 | 20 20 30 30 42 Greatest Overweight (x) 10 | . 8 2 10 4 Average Overweight (x) 1 | . 2 . 1 . Largest Inventory Capacity 10 | 8 10 10 10 10 Average Capacity 9 | 6 9 10 10 5 Most Carried 10 | 6 10 9 10 7 Average Carried 6 | 4 7 6 7 3 Final Capacity 10 | 8 10 10 10 5 Final Carried 9 | 6 9 7 8 1 Class Distribution -------------------- 77% | Mutant 12% | Scavenger-Gunner 7% | Tank Dominant Class ---------------- Mutant | -10/Materials Mutant | -9/Materials Mutant | -9/Mines Scavenger-Gunner | -8/Materials Resources | -11 -10 -9 -9 -8 ----------- Run | Yrd Mat Mat Min Mat Matter Collected 1064 | 250 93 416 42 263 Remotely . | . . . . . Salvage Created 915 | . 93 462 66 294 Parts 64 | . 5 35 8 16 Haulers Intercepted . | . . . . . Recyclers Shooed . | . . . . . Parts Field Recycled . | . . . . . Retrieved Matter . | . . . . . Parts Self-Destructed . | . . . . . Prevented . | . . . . . Kills | -11 -10 -9 -9 -8 ------- Run | Yrd Mat Mat Min Mat Combat Hostiles Destroyed 24 | . 5 11 4 4 Guns 21 | . 2 11 4 4 Cannons 3 | . 3 . . . Classes Destroyed 5 | . 2 2 . 1 Recycler 1 | . . . . 1 Watcher 1 | . . 1 . . Swarmer 12 | . 4 4 4 . Grunt 9 | . 1 5 . 3 Sentry 3 | . . 2 . 1 Best Kill Streak 4 | . 3 2 4 4 Combat Bots Only 4 | . 3 2 4 3 Max Kills in Single Turn 2 | . 1 1 2 2 Gunslinging . | . . . . . Exploded . | . . . . . Melee . | . . . . . Uniques/NPCs Destroyed . | . . . . . Combat | -11 -10 -9 -9 -8 -------- Run | Yrd Mat Mat Min Mat Hostile Shots Fired 444 | . 99 166 6 173 Missed 124 | . 22 45 1 56 Damage Taken 4135 | . 676 1349 41 2069 Core 935 | . 186 163 . 586 Absorbed by Shields . | . . . . . Core Remaining (%) 61 | 100 25 . 59 . Volleys Fired 96 | . 23 48 3 22 Largest 4 | . 2 2 2 4 Hottest 235 | . 80 200 90 235 Shots Fired 183 | . 42 74 6 61 Gun 160 | . 26 71 6 57 Cannon 20 | . 16 . . 4 Launcher . | . . . . . Special 3 | . . 3 . . Kinetic 63 | . 26 29 . 8 Thermal 71 | . 16 14 . 41 Explosive . | . . . . . Electromagnetic 49 | . . 31 6 12 Robot Hit Streak 11 | . 7 11 4 5 Robot Miss Streak 6 | . 5 6 3 3 Penetration Max . | . . . . . Secondary Targets 5 | . . 2 2 1 Max Gunslinging Chain 1 | . . 1 1 1 Shots Hit Robots 112 | . 23 48 4 37 Core Hits 44 | . 6 19 4 15 Critical Kills . | . . . . . Critical Parts Destroyed . | . . . . . Critical Strikes 1 | . . . . 1 Burn 1 | . . . . 1 Melee Attacks . | . . . . . Impact . | . . . . . Slashing . | . . . . . Piercing . | . . . . . Sneak Attacks . | . . . . . Combat Hostiles . | . . . . . Follow-up Attacks . | . . . . . Damage Inflicted 1635 | . 286 631 58 660 Guns 1381 | . 110 614 58 599 Cannons 229 | . 176 . . 53 Explosions . | . . . . . Melee . | . . . . . Ramming 25 | . . 17 . 8 Kinetic 471 | . 110 253 . 108 Thermal 616 | . 176 67 . 373 Explosive . | . . . . . Electromagnetic 523 | . . 294 58 171 Impact . | . . . . . Slashing . | . . . . . Piercing . | . . . . . Highest Corruption 3 | . . 3 3 . Average Corruption 2 | . . 2 3 . Corruption Purged . | . . . . . Corruption Blocked . | . . . . . Effects 11 | . . 5 6 . Message Errors 4 | . . 2 2 . Matter Fused 2 | . . . 2 . Heat Flow Errors 1 | . . 1 . . Energy Discharges 2 | . . 2 . . Parts Fused 1 | . . . 1 . Data Loss (major) 1 | . . . 1 . Overload Shots . | . . . . . Overflow Damage . | . . . . . Projectiles . | . . . . . Explosions . | . . . . . Melee . | . . . . . Knockbacks . | . . . . . Impact . | . . . . . Kinetic . | . . . . . Secondary . | . . . . . Self-Inflicted Damage . | . . . . . Shots . | . . . . . Rammed . | . . . . . Targets Rammed 6 | . . 4 . 2 Kicked 6 | . . 4 . 2 Crushed . | . . . . . Highest Temperature 527 | . 80 385 152 527 Average Temperature 148 | . 37 125 82 250 Received Heat Transfer 894 | . 60 393 . 441 Effects 14 | . . 3 . 11 Shutdowns 5 | . . 2 . 3 Energy Bleed 2 | . . 1 . 1 Interference 5 | . . . . 5 Matter Decay 1 | . . . . 1 Short Circuit 1 | . . . . 1 Siege Activations . | . . . . . Robots Corrupted . | . . . . . Combat Hostiles . | . . . . . Parts Fried 1 | . . 1 . . Impact Corruptions . | . . . . . Robots Melted . | . . . . . Combat Hostiles . | . . . . . Parts Melted . | . . . . . Heat Transferred 1462 | . 370 150 . 942 Parts Sabotaged . | . . . . . Parts Stolen . | . . . . . Parts Stripped . | . . . . . Power Chain Reactions . | . . . . . Alert | -11 -10 -9 -9 -8 ------- Run | Yrd Mat Mat Min Mat Peak Influence 206 | . 155 105 121 206 Initial 31 | . . 14 31 . Average 48 | . 45 33 80 67 Maximum Alert Level 1 | . . . . 1 Low Security (%) 99 | 100 100 100 100 95 Level 1 . | . . . . 4 Level 2 . | . . . . . Level 3 . | . . . . . Level 4 . | . . . . . Level 5 . | . . . . . High Security . | . . . . . Max Security . | . . . . . Squads Dispatched 7 | . 2 1 1 3 Investigation . | . . . . . Extermination . | . . . . . Reinforcement 6 | . 2 1 . 3 Assault 1 | . . . 1 . Garrison . | . . . . . Intercept . | . . . . . Searches Triggered . | . . . . . Construction Impeded . | . . . . . Haulers Reinforced . | . . . . . Active Scanning Responses . | . . . . . Cargo Convoy Interrupts . | . . . . . Stealth | -11 -10 -9 -9 -8 --------- Run | Yrd Mat Mat Min Mat Distress Signals 4 | . 2 2 . . Communications Jammed . | . . . . . Distress Signals . | . . . . . Times Spotted 53 | . 12 16 4 21 Peak Tracking Total 7 | . 4 4 2 7 Tactical Retreats 2 | . 1 . . 1 Traps | -11 -10 -9 -9 -8 ------- Run | Yrd Mat Mat Min Mat Traps Triggered 3 | . . 3 . . Indirectly . | . . . . . Trap Hack Attempts . | . . . . . Triggered . | . . . . . Disarmed . | . . . . . Reprogrammed . | . . . . . Reused . | . . . . . Traps Extracted . | . . . . . Installed . | . . . . . Triggered . | . . . . . Machines | -11 -10 -9 -9 -8 ---------- Run | Yrd Mat Mat Min Mat Machines Disabled 2 | . 2 . . . Max in Single Turn 1 | . 1 . . . Machines Repaired . | . . . . . Machines Dismantled . | . . . . . Machines Sabotaged . | . . . . . Overloaded Fab Kills . | . . . . . Hacking | -11 -10 -9 -9 -8 --------- Run | Yrd Mat Mat Min Mat Machines Accessed 2 | . . 2 . . Terminals 2 | . . 2 . . Fabricators . | . . . . . Repair Stations . | . . . . . Recycling Units . | . . . . . Scanalyzers . | . . . . . Garrison Access . | . . . . . Total Hacks 3 | . . 3 . . Successful 3 | . . 3 . . Failed . | . . . . . Catastrophic . | . . . . . Database Lockouts . | . . . . . Manual . | . . . . . Terminals 3 | . . 3 . . Fabricators . | . . . . . Repair Stations . | . . . . . Recycling Units . | . . . . . Scanalyzers . | . . . . . Garrison Access . | . . . . . Terminal Hacks 3 | . . 3 . . Transport Status 1 | . . 1 . . Hauler Manifests 1 | . . 1 . . Zone Layout 1 | . . 1 . . Fabricator Hacks . | . . . . . Repair Station Hacks . | . . . . . Recycling Unit Hacks . | . . . . . Scanalyzer . | . . . . . Garrison Access Hacks . | . . . . . Unauthorized Hacks . | . . . . . Terminals . | . . . . . Fabricators . | . . . . . Repair Stations . | . . . . . Recycling Units . | . . . . . Scanalyzers . | . . . . . Garrison Access . | . . . . . Data Cores Recovered . | . . . . . Used . | . . . . . Hacking Detections 2 | . . 2 . . Full Trace Events . | . . . . . Feedback Events . | . . . . . Feedback Blocked . | . . . . . Robot Schematics Acquired . | . . . . . Robots Built . | . . . . . Authchips . | . . . . . Time . | . . . . . Total Robot Build Rating . | . . . . . Part Schematics Acquired . | . . . . . Parts Built . | . . . . . Authchips . | . . . . . Time . | . . . . . Total Part Build Rating . | . . . . . Parts Repaired . | . . . . . Time . | . . . . . Parts Recycled . | . . . . . Recycled Matter . | . . . . . Retrieved Matter . | . . . . . Retrieved Components . | . . . . . Parts Scanalyzed . | . . . . . Part Schematics Acquired . | . . . . . Parts Damaged . | . . . . . Bothacking | -11 -10 -9 -9 -8 ------------ Run | Yrd Mat Mat Min Mat Used RIF Installer . | . . . . . Robots Hacked . | . . . . . Non-combat . | . . . . . Combat . | . . . . . Robot Hacks Applied . | . . . . . Relay Couplers Released . | . . . . . Fabnet Peak Effective % . | . . . . . Robots Rewired . | . . . . . Allies Hacked . | . . . . . Hacks Repelled . | . . . . . Allies | -11 -10 -9 -9 -8 -------- Run | Yrd Mat Mat Min Mat Total Allies 1 | . . . 1 . Largest Group 1 | . . . 1 1 Highest-Rated Group 31 | . . . 31 31 Highest-Rated Ally 31 | . . . 31 31 Total Orders . | . . . . . Ally Attacks 51 | . . . . 51 Total Damage 812 | . . . . 812 Kills 8 | . . . . 8 Allies Corrupted . | . . . . . Allies Melted . | . . . . . Intel | -11 -10 -9 -9 -8 ------- Run | Yrd Mat Mat Min Mat Robot Analysis Total . | . . . . . Derelict Logs Recovered 1 | . . . 1 . Drone Launches . | . . . . . Drone Recoveries . | . . . . . Exploration | -11 -10 -9 -9 -8 ------------- Run | Yrd Mat Mat Min Mat Turns Passed 3430 | 75 749 1424 480 702 Spaces Moved 1655 | 54 274 687 219 421 Core 28 | 11 9 . 2 6 Treads 27 | . . 27 . . Legs 1251 | 42 121 622 57 409 Wheels 1 | 1 . . . . Hover 103 | . 65 38 . . Flight 245 | . 79 . 160 6 Fastest Speed 50 | 50 116 120 190 50 Average Speed 178 | 105 233 178 204 137 Slowest Speed 680 | 120 520 260 680 360 Overloaded Moves . | . . . . . Propulsion Burnouts . | . . . . . Robots Hopped . | . . . . . Cave-ins Triggered . | . . . . . Exploration Rate (%) 25 | 3 31 26 45 21 Regions Visited 4 Branch Regions 1 Pre-discovered Areas . | . . . . . Known Exits Taken . | . . . . . Unknown Exits Taken 4 | 1 1 1 1 . Scrap Searched 1 | . . . 1 . Spaces Dug . | . . . . . Terrain Destroyed 1 | . . 1 . . Melee . | . . . . . Projectile 1 | . . 1 . . AOE . | . . . . . Terrain Rammed . | . . . . . Walls Destroyed . | . . . . . Machines Disabled . | . . . . . Actions | -11 -10 -9 -9 -8 --------- Run | Yrd Mat Mat Min Mat Total 1973 | 70 347 810 248 498 Wait 44 | . 15 12 13 4 Move 1651 | 53 273 686 218 421 Hop . | . . . . . Pick Up 22 | 6 5 6 4 1 Fast Attach 42 | 5 11 12 2 12 Attach 32 | 3 3 12 1 13 Detach 30 | 2 7 10 2 9 Swap 14 | 1 2 7 . 4 Drop 36 | . 8 13 5 10 Fire 96 | . 23 48 3 22 Melee . | . . . . . Ram . | . . . . . Kick 6 | . . 4 . 2 Crush . | . . . . . Escape Stasis . | . . . . . Rewire . | . . . . . Trap . | . . . . . Miscellaneous . | . . . . . Route ------- -11/Scrapyard -10/Materials -9/Materials -9/Mines (discovered 2 exits: [*Mat x2]) -8/Materials (discovered 1 exit: [*Fac]) History --------- Turn | Location | Event 21 | -11/Scrapyard | Discovered new exit (range 14) 76 | -11/Scrapyard | Entered Materials 262 | -10/Materials | Discovered new exit (range 16) 302 | -10/Materials | Build established: Mutant 375 | -10/Materials | Core integrity fell below 50% 389 | -10/Materials | Lost 4 parts (2p2n) 825 | -10/Materials | Entered another Materials area 825 | -9/Materials | Evolved 2 slots: Power x1, Propulsion x1 871 | -9/Materials | Discovered new exit (range 16) 1173 | -9/Materials | Lost 8 parts (1p2n1u4w) 2249 | -9/Materials | Entered Mines 2306 | -9/Mines | Discovered new exit (range 13) 2615 | -9/Mines | Learned Materials emergency access door positions 2709 | -9/Mines | Discovered new exit (range 4) 2710 | -9/Mines | Met a Derelict testing a Signal Generator 2729 | -9/Mines | Entered Materials 2729 | -8/Materials | Accompanied by 1 ally 2729 | -8/Materials | Evolved 2 slots: Weapon x2 3021 | -8/Materials | Lost 7 parts (2p2n1u2w) 3267 | -8/Materials | Build established: Scavenger-Gunner 3389 | -8/Materials | Discovered new exit (range 9) 3405 | -8/Materials | Core integrity fell below 50% 3421 | -8/Materials | Core integrity fell below 20% 3431 | -8/Materials | Destroyed by H-61 Shepherd with Heavy Assault Cannon Last Messages --------------- Knocked back. M-13 Machinist repairs Imp. Hover Unit. Sml. Laser destroyed. Beam Rifle destroyed. Particle Gun destroyed. K-01 Serf collects debris. Penetrated by Slug. Repair Station disabled. Backup Propulsion I tumbles out of repair station. Imp. Ion Engine destroyed. Autogun destroyed. Imp. Terrain Scan Processor destroyed. Critical hit (Blast). Flight Unit destroyed. K-01 Serf collects debris. Hvy. Assault Rifle destroyed. Knocked back. M-13 Machinist repairs H-61 Shepherd. Acquired Backup Propulsion I. Map ----- +----------------------------------------------------+ | ?????????????????????????????????????????????????? | | ?????????????????????????????????????????????????? | | ?????????????????????????????????????????????????? | | ?????????????????????????????????????????????????? | | ?????????????????????????????????????????????????? | | ?????????????????????????????????????????????????? | | ?????????????????????????????????????????????????? | | ?????????????????????????????????????????????????? | | ????????????????????????????????? ???????????????? | | ?+??????????????????????????????? ??????????????? | | ???????????????????????????????? ??????????????? | | ???????????????????????????????# #?????????????? | | ???????????????????????????????# ####??????????? | | ???????????????????????????????# [[#?????????? | | ???????????????????????????????# [[#?????????? | | ???????????????????????????????# !!??????????? | | ???????????????????????????????# !???????????? | | ???????????????????????????????# !!??????????? | | #???????????????????############ ????????????? | | #??##???????????????# ## ##????????????? | | #### ####???????????# """ # ########?????? | | ## #??????????## """ #%" #?????? | | ## """ #??????????# """ + " x < #?????? | | ## """ #??###??????# "%" #k *H[ #?????? | | ## """ ####%######?# "R"= %; km #+##???????? | | ## # !=[ #?# "" @ ## % ## #??????? | | ## """ # [ #?# = ## #?????????????? | | ## """ # [ ############## #?????????????? | | ?# """ # """ # # #?????????????? | | ?# = # """ # """"" # #?????????????? | | ?# ""%# """ #! """"" + #?????????????? | | ?# T"[# # """"" # #?????????????? | | ?# "" # # ###^#?????????????? | | ?# ####+##############+####?? #?????????????? | | ######+###!!% ############ ##???? #?????????????? | | [ ![%!! % ##### #?????????????? | | = *% * +????????????? | | = %[! #######?????????????? | | ########## ############ ##???????????????????? | | #?## ##??????????# #????????????????????? | | "" """ #??# #???????????# #????????????????????? | | "" """ #??# #???????????# #????????????????????? | | "" """ #??# #???????????# #????????????????????? | | #??# #???????????# #????????????????????? | | #??# #???????????#+#????????????????????? | | +#######?## ##?????????????????????????????????? | | ####### #?????????????????????????????????? | | #?????????????????????????????????? | | #?????????????????????????????????? | | #?????????????????????????????????? | +----------------------------------------------------+ Best States ------------- Heat Dissipation 50 Energy Generation 23 Energy Capacity 430 Matter Stores 300 Matter Capacity 300 Sight Range 16 Terrain Scan Density 110 Armor Coverage 225 Evasion (%) 55 Recoil Reduction 1 Salvage Targeting 1 Item Schematics ----------------- None Robot Schematics ------------------ None Fabricated ------------ Nothing Alien Tech Used ----------------- None Achievements -------------- None Challenges ------------ None Game ------ Seed SystemCoreImmobilizer Manual? 0 Play Time 00:33:03 Cumulative 1.8 hours Start 2024.04.07 @ 10:59:47 End 2024.04.07 @ 11:30:12 Sessions 1 Manual Loads 0 Difficulty Rogue Special Mode None Game No. 3 Rogue 3 Adventurer 0 Explorer 0 Win Type - Total 0 Types 0/0/0/0/0/0/0/0/0 Lore% 0 Gallery% 7 Achievement% 7 Wizard Run 0 Options --------- Layout 1 ASCII 1 Keyboard 1 Movement Arrows Keybinds 0 Fullscreen 1 Font 24/Proggy Map View 50x35 Zoom Use 0% Tactical HUD 0 Map Filters NONE Filters NONE Steam 0 RUN: 6b1f2b08-4e96-4f2b-87bd-5e37d36b9676